fUST/lending_fUST_20240816
["ID","MTS","AMOUNT","RATE_DAILY","PERIOD"]
[335025667,1723760947542,-309.52024362,0.00013596,2]
[335025668,1723760947564,-250.0,0.00013628,2]
[335025669,1723760947588,-250.0,0.00013665,2]
[335025670,1723760947609,-413.41235077,0.00013688,2]
[335025671,1723760947631,-688.39720146,0.00013698,2]
[335025672,1723760947652,-237.630121,0.00013699,2]
[335025673,1723760947678,-250.0,0.00013701,2]
[335025674,1723760947701,-250.0,0.00013737,2]
[335025675,1723760947725,-250.0,0.00013774,2]
[335025676,1723760947749,-160.66884839,0.00013792,2]
[335025677,1723760947772,-250.0,0.0001381,2]
[335025678,1723760947795,-250.0,0.00013847,2]
[335025679,1723760947818,-250.0,0.00013883,2]
[335025680,1723760947843,-250.0,0.00013919,2]
[335025681,1723760947871,-250.0,0.00013956,2]
[335025682,1723760947894,-180.86518133,0.00013971,2]
[335025683,1723760947917,-6220.2693161,0.00013971,2]
[335025684,1723760947939,-154.78325886,0.00013971,2]
[335025685,1723760947960,-189.9631639,0.00013971,2]
[335025686,1723760947981,-155.15250678,0.00013971,2]
[335025687,1723760948002,-228.803563,0.00014247,2]
[335025688,1723760948023,-933.23052242,0.00014519,2]
[335025689,1723760948044,-420.0,0.0001495,2]
[335025690,1723760948067,-500.0,0.00015594,2]
[335025691,1723760948088,-500.0,0.00015594,2]
[335025692,1723760948111,-500.0,0.00015594,2]
[335025693,1723760948135,-500.0,0.00015594,2]
[335025694,1723760948156,-500.0,0.00015594,2]
[335025695,1723760948179,-500.0,0.00015594,2]
[335025696,1723760948200,-500.0,0.00015594,2]
[335025697,1723760948221,-500.0,0.00015594,2]
[335025698,1723760948242,-608.26637384,0.00015594,2]
[335025699,1723760948263,-500.0,0.00015594,2]
[335025700,1723760948284,-500.0,0.00015594,2]
[335025701,1723760948306,-500.0,0.00015594,2]
[335025702,1723760948327,-500.0,0.00015594,2]
[335025703,1723760948349,-500.0,0.00015594,2]
[335025704,1723760948370,-500.0,0.00015594,2]
[335025705,1723760948391,-500.0,0.00015594,2]
[335025706,1723760948414,-500.0,0.00015594,2]
[335025707,1723760948436,-500.0,0.00015594,2]
[335025708,1723760948459,-622.5124212,0.00015594,2]
[335025709,1723760948480,-500.0,0.00015594,2]
[335025710,1723760948501,-500.0,0.00015594,2]
[335025711,1723760948524,-500.0,0.00015594,2]
[335025712,1723760948547,-500.0,0.00015594,2]
[335025713,1723760948570,-500.0,0.00015594,2]
[335025714,1723760948591,-500.0,0.00015594,2]
[335025715,1723760948613,-500.0,0.00015594,2]
[335025716,1723760948633,-500.0,0.00015594,2]
[335025717,1723760948655,-500.0,0.00015594,2]
[335025718,1723760948678,-234.25181931,0.00015594,2]
[335025719,1723760948700,-500.0,0.00015594,2]
[335025720,1723760948721,-500.0,0.00015594,2]
[335025721,1723760948744,-500.0,0.00015594,2]
[335025722,1723760948768,-500.0,0.00015594,2]
[335025723,1723760948792,-250.0,0.00015594,2]
[335025724,1723760948813,-24900.0,0.00015596,2]
[335025725,1723760948835,-340.4033848,0.00015791,2]
[335025726,1723760948855,-3000.0,0.00015976,2]
[335025727,1723760948881,-573.87800867,0.00016009,2]
[335025728,1723760948903,-579.2790319,0.00016109,2]
[335025729,1723760948928,-300.0,0.00016445,2]
[335025730,1723760948950,-782.12449386,0.00017208,2]
[335025731,1723760948970,-251.64143621,0.00018,2]
[335025732,1723760948991,-251.0,0.00019178,2]
[335025733,1723760949012,-573.87800863,0.00019482,2]
[335025734,1723760949034,-156.56267046,0.0002,2]
[335025735,1723760949057,-178.38845798,0.0002,2]
[335025736,1723760949078,-317.90606073,0.0002,2]
[335025737,1723760949100,-228.803563,0.00020707,2]
[335025738,1723760949127,-3000.0,0.00021,2]
[335025739,1723760949148,-3000.0,0.0002101,2]
[335025740,1723760949173,-3000.0,0.0002102,2]
[335025741,1723760949194,-3000.0,0.0002103,2]
[335025742,1723760949216,-3000.0,0.0002104,2]
[335025743,1723760949237,-2152.56718613,0.0002105,2]
[335025744,1723760954129,-342.34390176,0.00012989,2]
[335025745,1723760954152,-1647.0611668,0.00013698,3]
[335025749,1723760963210,3141.97055473,0.0001,2]
[335025750,1723760963243,2063.60880239,0.0001,2]
[335025751,1723760967110,-154.79102903,0.00012971,2]
[335025752,1723760967132,-634.40038606,0.00013698,3]
[335025753,1723760967156,-3090.22024194,0.00015494,2]
[335025754,1723760967181,-3090.22024188,0.00020952,2]
[335025755,1723760967203,-847.43281387,0.0002105,2]
[335025756,1723760967226,-3000.0,0.0002106,2]
[335025757,1723760967251,-10711.5963827,0.0002106,3]
[335025758,1723760967275,-3000.0,0.0002107,2]
[335025759,1723760967298,-3000.0,0.0002108,2]
[335025760,1723760967321,-3000.0,0.0002109,2]
[335025761,1723760967343,-3000.0,0.000211,2]
[335025762,1723760967365,-3000.0,0.0002111,2]
[335025763,1723760967389,-3686.568487,0.0002112,2]
[335025764,1723760967411,-157.03315837,0.000212,30]
[335025765,1723760967437,-302.60665372,0.00022,2]
[335025766,1723760967460,-302.60665372,0.0002222,2]
[335025767,1723760967483,-302.60665372,0.0002244,2]
[335025768,1723760967508,-302.60665372,0.0002266,2]
[335025769,1723760967532,-302.60665372,0.0002288,2]
[335025770,1723760967555,-573.87800863,0.00022955,2]
[335025771,1723760967578,-278.79888878,0.000231,4]
[335025772,1723760967600,-162.592184,0.00023219,2]
[335025773,1723760967623,-10337.19273734,0.000246,2]
[335025774,1723760967644,-200.0,0.00024658,15]
[335025775,1723760967666,-2606.26346968,0.00024662,2]
[335025776,1723760967691,-1114.53666801,0.00024662,2]
[335025777,1723760967713,-270.84725147,0.00024662,2]
[335025778,1723760967734,-154.77557542,0.00024662,2]
[335025779,1723760967757,-882.43417531,0.00024662,2]
[335025780,1723760967780,-258.32470101,0.00024662,2]
[335025781,1723760967802,-277.52010074,0.0002469,2]
[335025782,1723760967824,-256.69789751,0.00024728,2]
[335025783,1723760967846,-919.83,0.0002499,3]
[335025784,1723760967870,-154.79103211,0.00025,2]
[335025785,1723760967894,-150.112234,0.00025,5]
[335025786,1723760967920,-14227.47179932,0.00025,60]
[335025789,1723760994005,225.45191648,0.00012121,2]
[335025790,1723760994031,159.71347336,0.00012121,2]
[335025907,1723761039027,-201.02676042,0.00012121,2]
[335025908,1723761039038,-156.56267046,0.0002,2]
[335025909,1723761039049,-638.77,0.0002499,3]
[335025910,1723761039059,-532.31,0.0002499,3]
[335025911,1723761039069,-300.0,0.00024999,2]
[335025912,1723761039079,-500.0,0.00024999,2]
[335025913,1723761039089,-500.0,0.00024999,2]
[335025914,1723761039100,-500.0,0.00024999,2]
[335025915,1723761039110,-187.25124212,0.00024999,2]
[335025916,1723761039120,-15396.800927,0.00025,60]
[335025917,1723761039140,-10947.54319368,0.00025,60]
[335026060,1723761043498,-544.5886211,0.00025,60]
[335026062,1723761043710,-15197.27841822,0.00025,60]
[335026064,1723761043720,-154.79103211,0.00025,2]
[335026065,1723761043734,-68239.38008663,0.00025,7]
[335026092,1723761046705,-9143.25,0.00025,7]
[335026108,1723762041146,-933.43837954,0.00012971,2]
[335026109,1723762041169,-300.0,0.00012988,2]
[335026110,1723762041193,-300.0,0.00012988,2]
[335026111,1723762041220,-6220.2693161,0.00012989,2]
[335026112,1723762041243,-320.14177954,0.00012989,2]
[335026113,1723762041268,-601.63686439,0.00012991,2]
[335026114,1723762041437,-263.31182569,0.00013333,3]
[335026115,1723762041460,-176.3835269,0.00013477,2]
[335026116,1723762041485,-688.39720146,0.00013496,2]
[335026117,1723762041510,-154.81863612,0.00013496,2]
[335026118,1723762041534,-180.86518133,0.00013497,2]
[335026119,1723762041557,-189.9631639,0.00013497,2]
[335026120,1723762041579,-309.52024362,0.00013497,2]
[335026121,1723762041603,-160.66884839,0.00013597,2]
[335026122,1723762041625,-413.48972324,0.00013597,2]
[335026123,1723762041649,-225.602183,0.00014247,2]
[335026124,1723762041672,-420.0,0.00014287,2]
[335026125,1723762041695,-601.87255041,0.00014519,2]
[335026126,1723762041723,-237.630121,0.00015307,2]
[335026127,1723762041747,-250.0,0.00016931,2]
[335026128,1723762041770,-250.0,0.00016977,2]
[335026129,1723762041794,-250.0,0.00017024,2]
[335026130,1723762041818,-250.0,0.0001707,2]
[335026131,1723762041841,-250.0,0.00017116,2]
[335026132,1723762041863,-250.0,0.00017163,2]
[335026133,1723762041886,-250.0,0.00017209,2]
[335026134,1723762041909,-250.0,0.00017256,2]
[335026135,1723762041933,-250.0,0.00017302,2]
[335026136,1723762041962,-250.0,0.00017349,2]
[335026137,1723762041984,-250.0,0.00017395,2]
[335026138,1723762042007,-250.0,0.00017441,2]
[335026139,1723762042029,-250.0,0.00017488,2]
[335026140,1723762042052,-6423.96104089,0.00017514,2]
[335026141,1723762145109,-155.15250678,0.00013477,2]
[335026142,1723762145132,-246.93285154,0.00014245,2]
[335026143,1723762145155,-320.02539096,0.00014519,2]
[335026144,1723762145177,-413.3349783,0.00014519,2]
[335026145,1723762145199,-600.62142139,0.00014519,2]
[335026146,1723762145222,-4750.69056281,0.00017514,2]
[335026147,1723762145248,-2111.27572321,0.00017514,2]
[335026148,1723762145270,-250.0,0.00017534,2]
[335026149,1723762145295,-250.0,0.00017581,2]
[335026150,1723762145317,-250.0,0.00017627,2]
[335026151,1723762145342,-250.0,0.00017674,2]
[335026152,1723762145367,-250.0,0.0001772,2]
[335026153,1723762145389,-250.0,0.00017767,2]
[335026154,1723762145411,-1547.45573526,0.00017771,2]
[335026156,1723762154108,-932.5521804,0.00014519,2]
[335026157,1723762154132,-405.19320777,0.00017514,2]
[335026158,1723762154154,-1452.54426474,0.00017771,2]
[335026159,1723762154180,-250.0,0.00017813,2]
[335026160,1723762154203,-251.0,0.00019178,2]
[335026161,1723762154226,-33.32526352,0.00019178,2]
[335026162,1723762169110,-8691.6136125,0.00017514,2]
[335026163,1723762169133,-192.68314799,0.00017514,2]
[335026164,1723762169156,-129.26692048,0.00019178,2]
[335026165,1723762169180,-225.602183,0.00020707,2]
[335026166,1723762169201,-162.972934,0.0002073,2]
[335026167,1723762169224,-150.0,0.00021,2]
[335026168,1723762169249,-865.74140387,0.0002217,2]
[335026169,1723762169270,-5319.45936445,0.00024364,2]
[335026170,1723762169291,-2317.66518141,0.00024562,2]
[335026171,1723762169313,-5319.45936445,0.00024576,2]
[335026172,1723762169334,-10337.19273734,0.00024613,2]
[335026173,1723762169354,-2606.26346968,0.00024658,2]
[335026174,1723762169375,-782.12449386,0.00024728,2]
[335026175,1723762169396,-500.0,0.00024755,2]
[335026176,1723762169418,-500.0,0.00024755,2]
[335026177,1723762169441,-500.0,0.00024755,2]
[335026178,1723762169466,-500.0,0.00024755,2]
[335026179,1723762169490,-500.0,0.00024755,2]
[335026180,1723762169514,-500.0,0.00024755,2]
[335026181,1723762169537,-500.0,0.00024755,2]
[335026182,1723762169561,-418.72512422,0.00024755,2]
[335026183,1723762169585,-5319.45936445,0.00024803,2]
[335026184,1723762169606,-208.20868268,0.00024847,2]
[335026185,1723762169630,-247.42541326,0.00024847,2]
[335026186,1723762169656,-18679.1009127,0.0002499,3]
[335026187,1723762169678,-437.56,0.0002499,3]
[335026188,1723762169699,-5476.26569239,0.00025,7]
[335026282,1723762238946,-2546.60773139,0.0002154,2]
[335026356,1723762241477,-2485.7745095,0.0002154,2]
[335026357,1723762241499,-1150.345011,0.0002154,2]
[335026371,1723762243760,-4154.46548545,0.0002154,2]
[335026372,1723762243770,-2606.26346968,0.00024657,2]
[335026373,1723762243779,-605.21330743,0.00024875,6]
[335026374,1723762243789,-268.74723602,0.00024999,2]
[335026375,1723762243799,-456.99135898,0.00025,7]
[335026376,1723762243811,-7326.45476692,0.00025,7]
[335026378,1723762243820,-286.96667805,0.00025,2]
[335026379,1723762243830,-10502.54869245,0.00025,2]
[335026380,1723762243841,-171.93990209,0.00025,2]
[335026381,1723762243850,-154.80649189,0.00025,2]
[335026382,1723762243859,-4361.59518958,0.00025,2]
[335026383,1723762243869,-151.0,0.00025,7]
[335026384,1723762243878,-150.112234,0.00025,5]
[335026386,1723762243888,-151.0,0.00025,7]
[335026388,1723762243897,-151.0,0.00025,7]
[335026389,1723762243906,-151.0,0.00025,7]
[335026390,1723762243916,-151.0,0.00025,7]
[335026391,1723762243928,-265.892429,0.00025,7]
[335026392,1723762243939,-265.892429,0.00025,7]
[335026393,1723762243949,-151.0,0.00025,7]
[335026394,1723762243959,-151.0,0.00025,7]
[335026395,1723762243969,-151.0,0.00025,7]
[335026396,1723762243979,-169.134639,0.00025,7]
[335026397,1723762243989,-218.59781191,0.00025,2]
[335026398,1723762243999,-1670.74719108,0.00025,2]
[335026399,1723762244009,-155.10510622,0.00025,2]
[335026400,1723762244019,-87.34886267,0.00025,2]
[335026404,1723762246763,-0.79576203,0.00025,2]
[335026427,1723763136185,-203.041964,0.00014247,2]
[335026428,1723763136207,-35.03429903,0.00020707,2]
[335026430,1723763191173,-168.00766497,0.00020707,2]
[335026431,1723763191195,-80.49121575,0.00020707,2]
[335026433,1723763290597,273.37336231,9.9e-05,2]
[335026434,1723763318995,180.17462245,9.9e-05,2]
[335026435,1723763321458,3609.14757427,9.9e-05,2]
[335026436,1723763323761,427.58295713,9.9e-05,2]
[335026437,1723763323790,3363.14784919,9.9e-05,2]
[335026440,1723763341611,1717.89561353,9.9e-05,2]
[335026441,1723763348125,-154.79103211,0.00012,2]
[335026442,1723763348147,-182.737767,0.00014247,2]
[335026443,1723763348174,-329.9776569,0.00014519,2]
[335026444,1723763348197,-175.93809958,0.00014519,2]
[335026445,1723763348225,-154.03955732,0.00014519,2]
[335026446,1723763348247,-300.0,0.00020706,2]
[335026447,1723763348268,-300.0,0.00020706,2]
[335026448,1723763348292,-182.737767,0.00020707,2]
[335026449,1723763348314,-1670.74719108,0.00020707,2]
[335026450,1723763348336,-4899.54370588,0.00020707,2]
[335026451,1723763348360,-17.82494235,0.00021,2]
[335026454,1723763362115,-404.47298346,0.00012,2]
[335026455,1723763364110,-309.00538626,0.00020606,2]
[335026456,1723763364134,-33.45673276,0.00021,2]
[335026457,1723763364664,155.28894234,0.00012,2]
[335026458,1723763385540,-8803.75169087,0.000325,60]
[335026459,1723763385569,-6196.24830913,0.00025,30]
[335026473,1723763431827,-50.48591138,0.00012,2]
[335026475,1723763431838,-522.37437438,0.00021,2]
[335026536,1723763438495,-154.79103211,0.00014519,2]
[335026538,1723763438506,-2426.34395051,0.00021,2]
[335026540,1723763438515,-5850.0,0.0002101,2]
[335026543,1723763438526,-216.689177,0.0002152,2]
[335026545,1723763438536,-162.972933,0.0002198,2]
[335026546,1723763438546,-197.368832,0.00022184,2]
[335026547,1723763438556,-169.632294,0.00022421,2]
[335026548,1723763438566,-297.0,0.00022614,2]
[335026550,1723763438575,-169.632294,0.00022615,2]
[335026551,1723763438584,-169.632294,0.0002281,2]
[335026552,1723763438594,-169.632294,0.00023005,2]
[335026553,1723763438603,-169.632294,0.00023199,2]
[335026554,1723763438612,-169.632294,0.00023394,2]
[335026555,1723763438621,-169.632294,0.00023589,2]
[335026556,1723763438631,-4810.77637955,0.00024613,2]
[335026557,1723763438642,-431.24532089,0.00024613,2]
[335026558,1723763438653,-5323.40502986,0.00024672,2]
[335026559,1723763438664,-2606.26346968,0.00024688,2]
[335026560,1723763438674,-154.79103211,0.0002469,2]
[335026561,1723763438683,-154.89911116,0.00024728,2]
[335026562,1723763438692,-3071.15628676,0.00024728,2]
[335026564,1723763438705,-1246.94097177,0.00024728,2]
[335026565,1723763438715,-697.57107215,0.00025454,2]
[335026566,1723763438726,-582.41753839,0.00025454,2]
[335026597,1723763482170,273.37336231,9.9e-05,2]
[335026598,1723763497408,273.37336231,9.9e-05,2]
[335026599,1723763513301,273.37336231,9.9e-05,2]
[335026600,1723763558152,2421.4226521,9.9e-05,2]
[335026601,1723763558583,273.37336231,9.9e-05,2]
[335026605,1723764194966,154.79103211,0.00010081,2]
[335026606,1723764318676,271.18563857,0.00010081,2]
[335026608,1723764332219,-245.98,0.00012991,3]
[335026609,1723764332240,-54.19920988,0.00012999,2]
[335026610,1723764347104,-154.79103211,0.00013025,2]
[335026611,1723764347127,-164.776018,0.00014247,2]
[335026612,1723764347149,-25.32105484,0.00014247,2]
[335026617,1723764525214,1591.92497487,9e-05,2]
[335026618,1723764550138,-217.11203843,0.00013971,2]
[335026619,1723764550162,-206.10250141,0.00013971,2]
[335026620,1723764550184,-139.14293516,0.00014247,2]
[335026621,1723764550206,-154.78325886,0.00014519,2]
[335026622,1723764550227,-340.0446862,0.00014519,2]
[335026623,1723764550249,-300.0,0.00014999,2]
[335026624,1723764550271,-466.8874849,0.00015,2]
[335026625,1723764551128,-159.71347336,0.00014245,2]
[335026626,1723764551151,-4775.13421554,0.00015,2]
[335026627,1723764551173,-1106.04344165,0.00015,2]
[335026628,1723764551194,-277.52010074,0.000165,2]
[335026629,1723764551215,-156.56267046,0.0002,2]
[335026630,1723764551235,-154.79103211,0.0002,2]
[335026631,1723764551256,-242.94538758,0.0002,2]
[335026632,1723764551277,-258.32470101,0.0002,2]
[335026633,1723764551297,-371.20884579,0.000203,2]
[335026634,1723764551318,-10619.64099217,0.000205,2]
[335026635,1723764562102,-270.84725147,0.00017267,2]
[335026704,1723764638693,-705.39167507,0.000205,2]
[335026721,1723764643642,-14363.56893213,0.000205,2]
[335026723,1723764643655,-2025.85273131,0.000205,2]
[335026725,1723764643668,-1258.90541703,0.000205,2]
[335026727,1723764643677,-164.46399,0.00020707,2]
[335026728,1723764643687,-163.230695,0.00020858,2]
[335026729,1723764643696,-2276.49989797,0.00020929,2]
[335026733,1723764646426,-277.52010074,0.00020929,2]
[335026734,1723764646436,-377.560599,0.00021,2]
[335026735,1723764646445,-35.9429276,0.00022147,2]
[335026736,1723764651270,252.98616229,9.9e-05,2]
[335026737,1723764651295,20.38720002,9.9e-05,2]
[335026738,1723764720486,150.84498885,0.00014519,2]
[335026745,1723765203956,-182.91834322,0.00013596,2]
[335026746,1723765205297,-265.14875877,0.00013596,2]
[335026749,1723765217884,-182.91834322,0.00013597,2]
[335026750,1723765217908,-351.60554837,0.00013597,2]
[335026751,1723765218512,-182.91834322,0.00013597,2]
[335026752,1723765218537,-309.52024362,0.00013599,2]
[335026753,1723765218566,-174.75672236,0.00013599,2]
[335026754,1723765218590,-832.8046908,0.00013697,2]
[335026755,1723765221833,-667.1953092,0.00013697,2]
[335026762,1723765394008,-160.16095655,0.00013971,2]
[335026772,1723765556124,-176.90512803,0.00014247,2]
[335026779,1723765761125,-932.5521804,0.00014245,2]
[335026780,1723765761147,-51.89844097,0.00014247,2]
[335026781,1723765761168,-164.46399,0.00014247,2]
[335026782,1723765761193,-277.46411292,0.00016799,2]
[335026783,1723765761217,-1779.41945707,0.00016985,2]
[335026784,1723765761238,-782.12449386,0.00017267,2]
[335026785,1723765761264,-10306.56721272,0.00017898,2]
[335026786,1723765772123,-30.62552462,0.00017898,2]
[335026787,1723765774115,-1452.5442648,0.00019492,2]
[335026788,1723765774136,-162.646576,0.0001984,2]
[335026789,1723765774157,-156.56267046,0.0002,2]
[335026790,1723765774179,-178.38845798,0.0002,2]
[335026791,1723765774200,-381.03301742,0.0002,2]
[335026792,1723765774222,-5476.26569239,0.0002,2]
[335026793,1723765774243,-162.5921844,0.00020023,2]
[335026794,1723765774263,-1114.53666801,0.0002008,2]
[335026795,1723765774284,-154.79103211,0.00020291,2]
[335026796,1723765774305,-329.76357171,0.00020399,2]
[335026797,1723765774325,-251.0,0.00020922,2]
[335026798,1723765774345,-201.6871934,0.00020993,2]
[335026799,1723765774367,-5309.000044,0.00021,2]
[335026800,1723765774390,-166.666666,0.0002118,2]
[335026801,1723765774416,-166.666666,0.00021259,2]
[335026802,1723765774438,-166.666666,0.00021338,2]
[335026803,1723765774459,-166.666666,0.00021417,2]
[335026804,1723765774481,-164.46399,0.00021467,2]
[335026805,1723765774650,-166.666666,0.00021496,2]
[335026806,1723765774672,-1264.72913874,0.00021517,2]
[335026807,1723765774722,215.98308287,0.00017269,2]
[335026859,1723765832272,-189.2101249,0.00017269,2]
[335026861,1723765832282,-229.68300591,0.00020932,2]
[335026936,1723765838540,-17.72695066,0.00020932,2]
[335026937,1723765838550,-2728.87909332,0.00020932,2]
[335026938,1723765838699,-1259.41545977,0.00020932,2]
[335026959,1723765840443,-778.77816215,0.00020932,2]
[335026972,1723765840588,-1156.5,0.00020932,2]
[335026973,1723765843370,-433.55979401,0.00020932,2]
[335026974,1723765843380,-813.16037848,0.00020932,2]
[335027007,1723765846552,-1793.1030912,0.00020932,2]
[335027008,1723765846563,-556.8969087,0.00021517,2]
[335027009,1723765846967,-542.79084811,0.00021517,2]
[335027011,1723766092855,-319.12588046,0.00013971,2]
[335027012,1723766107790,-857.0768813,0.00013971,2]
[335027013,1723766137262,-412.72601555,0.00013971,2]
[335027018,1723766490746,3000.0,0.00027,120]
[335027019,1723766731063,-164.46399,0.00014247,2]
[335027020,1723766731084,-142.19810563,0.00014519,2]
[335027021,1723766756086,-3149.33727912,0.00015,2]
[335027022,1723766819120,-168.0076649,0.00014247,2]
[335027023,1723766819143,-80.4925857,0.00015,2]
[335027025,1723766840095,-1430.58582499,0.00015,2]
[335027026,1723766945089,-404.47298346,0.00014519,2]
[335027027,1723766945110,-155.28894234,0.00014519,2]
[335027028,1723766945131,-1199.09512856,0.00015,2]
[335027029,1723766945153,-159.722222,0.00019036,2]
[335027030,1723766945175,-159.722222,0.00019126,2]
[335027031,1723766945198,-251.0,0.00019178,2]
[335027032,1723766945220,-159.722222,0.00019217,2]
[335027033,1723766945241,-159.722222,0.00019307,2]
[335027034,1723766945261,-159.722222,0.00019397,2]
[335027035,1723766945283,-159.722222,0.00019487,2]
[335027036,1723766945303,-159.722222,0.00019577,2]
[335027037,1723766945324,-10000.0,0.0001964,2]
[335027038,1723766945345,-159.722222,0.00019668,2]
[335027039,1723766945368,-159.722222,0.00019758,2]
[335027040,1723766945390,-159.722222,0.00019848,2]
[335027041,1723766945412,-159.722222,0.00019938,2]
[335027042,1723766945435,-214.70140857,0.0002,2]
[335027043,1723766945458,-159.722222,0.00020028,2]
[335027044,1723766945478,-2773.30052236,0.00020296,2]
[335027045,1723766945498,-10000.0,0.00020362,2]
[335027046,1723766945518,-3423.31444455,0.00020362,2]
[335027047,1723766945540,-500.0,0.00020396,2]
[335027048,1723766945561,-500.0,0.00020396,2]
[335027049,1723766945586,-500.0,0.00020396,2]
[335027050,1723766945608,-500.0,0.00020396,2]
[335027051,1723766945630,-500.0,0.00020396,2]
[335027052,1723766945654,-500.0,0.00020396,2]
[335027053,1723766945675,-500.0,0.00020396,2]
[335027054,1723766945698,-500.0,0.00020396,2]
[335027055,1723766945720,-500.0,0.00020396,2]
[335027056,1723766945741,-509.63828063,0.00020396,2]
[335027057,1723766945767,-500.0,0.00020396,2]
[335027058,1723766945789,-500.0,0.00020396,2]
[335027059,1723766945814,-500.0,0.00020396,2]
[335027060,1723766945836,-151.0,0.00020398,2]
[335027061,1723766945858,-541.654511,0.00020398,2]
[335027062,1723766945879,-541.654511,0.00020398,2]
[335027063,1723766945899,-151.0,0.00020398,2]
[335027064,1723766945922,-4315.75938702,0.00020475,2]
[335027065,1723766945944,-4315.75938702,0.00020672,2]
[335027066,1723766945964,-151.0,0.00020739,2]
[335027067,1723766945986,-239.303186,0.00020739,2]
[335027068,1723766946006,-239.303186,0.00020739,2]
[335027069,1723766946028,-434.37418,0.00020739,2]
[335027070,1723766946049,-434.37418,0.00020739,2]
[335027071,1723766946070,-151.0,0.00020739,2]
[335027072,1723766946090,-151.0,0.00020739,2]
[335027073,1723766946111,-253.379985,0.00020739,2]
[335027074,1723766946132,-253.379985,0.00020739,2]
[335027075,1723766946153,-592.630076,0.00020848,2]
[335027076,1723766946173,-592.630076,0.00020848,2]
[335027077,1723766946195,-255.826372,0.00020848,2]
[335027078,1723766946215,-151.0,0.00020848,2]
[335027079,1723766946236,-255.826372,0.00020848,2]
[335027080,1723766946256,-151.0,0.00020848,2]
[335027081,1723766946277,-151.0,0.00020848,2]
[335027082,1723766946298,-541.654511,0.00020848,2]
[335027083,1723766946319,-541.654511,0.00020848,2]
[335027084,1723766946341,-151.0,0.00020848,2]
[335027085,1723766946364,-10000.0,0.00020871,2]
[335027086,1723766946385,-592.630076,0.00020871,2]
[335027087,1723766946405,-592.630076,0.00020871,2]
[335027088,1723766946426,-255.826372,0.00020871,2]
[335027089,1723766946449,-151.0,0.00020871,2]
[335027090,1723766946470,-255.826372,0.00020871,2]
[335027091,1723766946491,-239.303186,0.00020871,2]
[335027092,1723766946651,-239.303186,0.00020871,2]
[335027093,1723766946672,-434.37418,0.00020871,2]
[335027094,1723766946693,-434.37418,0.00020871,2]
[335027095,1723766946716,-231.074624,0.00020871,2]
[335027096,1723766946738,-151.0,0.00020871,2]
[335027097,1723766946763,-151.0,0.00020871,2]
[335027098,1723766946783,-541.654511,0.00020871,2]
[335027099,1723766946806,-541.654511,0.00020871,2]
[335027100,1723766946831,-253.379985,0.00020871,2]
[335027101,1723766946853,-151.0,0.00020871,2]
[335027102,1723766946874,-253.379985,0.00020871,2]
[335027103,1723766946897,-4315.75938702,0.00020979,2]
[335027104,1723766946921,-3000.0,0.00021,2]
[335027105,1723766946946,-150.112234,0.00021,5]
[335027106,1723766946967,-151.0,0.00021,2]
[335027107,1723766946988,-541.654511,0.00021,2]
[335027108,1723766947010,-541.654511,0.00021,2]
[335027109,1723766947031,-151.0,0.00021,2]
[335027110,1723766947053,-3000.0,0.0002101,2]
[335027111,1723766947074,-3000.0,0.0002102,2]
[335027112,1723766947095,-592.630076,0.0002102,2]
[335027113,1723766947115,-592.630076,0.0002102,2]
[335027114,1723766947137,-255.826372,0.0002102,2]
[335027115,1723766947157,-255.826372,0.0002102,2]
[335027116,1723766947178,-151.0,0.0002102,2]
[335027117,1723766947201,-239.303186,0.0002102,2]
[335027118,1723766947223,-239.303186,0.0002102,2]
[335027119,1723766947243,-434.37418,0.0002102,2]
[335027120,1723766947266,-434.37418,0.0002102,2]